bitfinex-derivatives/quotes_ETHF0:USTF0_20250404
["timestamp","ask_amount","ask_price","bid_price","bid_amount"]
[1743773661719,1.12734,1774.4,1774.3,1.5123]
[1743773662026,1.13577573,1774.4,1774.3,1.5123]
[1743773662321,1.13577573,1774.4,1774.3,1.91654308]
[1743773662514,1.13577573,1774.4,1774.3,0.40424308]
[1743773662721,1.13577573,1774.4,1773.9,5.373]
[1743773662722,1.12753,1774.1,1774.0,1.5123]
[1743773662911,1.12747,1774.2,1774.0,2.63986]
[1743773663116,0.00843573,1774.4,1774.1,44.0078]
[1743773663310,1.1274,1774.3,1774.2,1.4554]
[1743773663919,0.00843573,1774.4,1774.2,1.4554]
[1743773664120,1.1274,1774.3,1774.2,1.4554]
[1743773664518,0.00843573,1774.4,1774.2,1.4554]
[1743773664822,1.13580573,1774.4,1774.2,2.58287]
[1743773665020,0.00843573,1774.4,1774.2,1.4554]
[1743773665521,1.1274,1774.3,1774.2,1.4554]
[1743773665715,1.12772,1773.8,1773.7,0.7114]
[1743773665918,1.12772,1773.8,1773.7,1.4554]
[1743773666311,5.31937,1773.8,1773.4,0.00843573]
[1743773666517,1.12791,1773.5,1773.4,0.00843573]
[1743773666913,2.82018,1773.3,1772.7,4.33619]
[1743773667118,2.82026,1773.2,1772.4,3.2078]
[1743773667318,1.4881,1773.2,1772.6,3.2078]
[1743773667518,1.4881,1773.2,1772.8,1.12836]
[1743773667715,1.4881,1773.2,1772.6,3.2078]
[1743773667912,6.0277,1773.5,1772.7,2.82106]
[1743773668111,1.4881,1773.4,1772.8,3.2078]
[1743773668316,0.00846024,1773.1,1773.0,3.2078]
[1743773668513,1.12793,1773.5,1773.3,1.12798]
[1743773668716,7.51522,1773.8,1773.3,1.12801]
[1743773669019,1.12803,1773.4,1773.2,4.33584]
[1743773669216,2.05210001,1773.8,1773.2,3.2078]
[1743773669419,1.12771,1773.9,1773.7,1.12774]
[1743773669619,1.12766,1773.9,1773.8,1.4429]
[1743773670319,1.13610024,1774.0,1773.8,1.4429]
[1743773670521,1.13608024,1774.0,1773.9,1.12766]
[1743773670712,1.12766,1773.9,1773.8,4.6507]
[1743773671118,1.12766,1773.9,1773.8,1.4429]
[1743773671415,2.82755024,1774.0,1773.7,40.8]
[1743773671616,1.12772,1773.8,1773.7,40.8]
[1743773671837,1.12772,1773.8,1773.7,41.92774]
[1743773672024,1.12772,1773.8,1773.7,44.42774]
[1743773672221,0.00846024,1774.0,1773.7,44.42774]
[1743773672416,1.12766,1773.9,1773.8,1.469]
[1743773672622,1.13612024,1774.0,1773.8,2.59672]
[1743773672818,1.13605024,1774.0,1773.9,1.469]
[1743773673125,0.00846024,1774.0,1773.9,2.59666]
[1743773673420,1.13605024,1774.0,1773.9,1.469]
[1743773673623,0.00846024,1774.0,1773.9,5.09666]
[1743773673825,3.2078,1774.9,1773.9,7.1768]
[1743773674123,1.12707,1774.9,1774.8,1.12709]
[1743773674318,6.58877001,1775.3,1774.7,3.2078]
[1743773674520,1.12705,1774.9,1774.8,1.469]
[1743773674728,4.88769001,1775.2,1774.8,2.59609]
[1743773674924,1.12702,1774.9,1774.8,1.469]
[1743773675132,1.12702,1774.9,1774.8,1.47746024]
[1743773675423,1.12691,1775.1,1774.8,3.97746024]
[1743773675620,1.12695,1775.1,1774.9,2.57138]
[1743773675822,1.13534024,1775.2,1775.0,1.12694]
[1743773676122,1.13534024,1775.2,1775.1,42.2444]
[1743773676323,0.00846024,1775.2,1775.1,46.57909]
[1743773676519,1.5431,1775.6,1775.1,47.9522]
[1743773676730,3.2078,1775.5,1775.2,1.4444]
[1743773676922,1.12702,1774.9,1774.8,0.00846024]
[1743773677429,1.12692,1775.1,1774.8,40.80846024]
[1743773677621,0.56400001,1775.6,1774.9,4.6522]
[1743773677823,0.56400001,1776.1,1775.5,3.2078]
[1743773678021,1.5431,1776.1,1775.7,1.12647]
[1743773678221,0.00846024,1776.0,1775.5,5.37]
[1743773678429,0.00846024,1776.0,1775.6,45.433]
[1743773678626,0.00846024,1776.0,1775.7,2.5517]
[1743773678627,1.12644,1775.9,1775.7,2.5517]
[1743773678823,0.00846024,1776.0,1775.9,1.12639]
[1743773679025,0.00846024,1776.0,1775.9,5.75939]
[1743773679233,0.00846024,1776.0,1775.9,4.633]
[1743773679424,0.00846024,1776.0,1775.9,1.4252]
[1743773679626,1.13478024,1776.0,1775.9,1.4252]
[1743773679931,0.00846024,1776.0,1775.9,1.4252]
[1743773680229,0.00846024,1776.0,1775.9,5.75939]
[1743773680431,0.00846024,1776.0,1775.9,8.25939]
[1743773680926,2.81502,1776.5,1775.9,3.9252]
[1743773681122,2.92776725,1776.4,1775.9,2.55159]
[1743773681323,1.12632,1776.0,1775.9,1.4252]
[1743773681827,1.12642,1775.9,1775.6,46.17546024]
[1743773682025,0.00846024,1776.1,1775.7,2.64847]
[1743773682230,1.4429,1776.0,1775.7,1.522]
[1743773682427,0.00846024,1776.1,1775.9,3.2078]
[1743773682735,1.13472024,1776.1,1776.0,1.522]
[1743773682930,1.1264,1775.9,1775.7,1.1265]
[1743773683132,0.00846024,1776.1,1775.7,4.7298]
[1743773683325,0.00846024,1776.1,1775.9,3.2078]
[1743773683527,0.00846024,1776.1,1776.0,2.64832]
[1743773683828,1.13472024,1776.1,1776.0,6.871]
[1743773684021,1.1264,1775.9,1775.7,9.67928]
[1743773684226,1.4429,1776.0,1775.7,10.0748]
[1743773684425,0.00846024,1776.1,1776.0,1.12632]
[1743773684635,0.00846024,1776.1,1776.0,5.04182]
[1743773685127,0.11258725,1776.4,1776.3,1.12613]
[1743773685328,1.5178,1776.7,1776.2,8.5518]
[1743773685529,1.12584,1776.8,1776.5,3.2078]
[1743773685732,1.12577,1776.9,1776.7,1.12587]
[1743773685935,1.12582,1776.8,1776.7,1.4155]
[1743773686237,1.12588,1776.7,1776.6,40.8]
[1743773686429,0.00846024,1776.9,1776.6,0.00846024]
[1743773686727,5.85129,1777.0,1776.9,0.05184085]
[1743773687136,1.07403915,1776.7,1776.6,1.42396024]
[1743773687333,0.05184085,1776.6,1776.5,4.33379]
[1743773687534,0.05184085,1776.6,1776.5,6.83381]
[1743773687734,1.12583,1776.8,1776.6,1.07407915]
[1743773687939,1.5178,1777.0,1776.7,3.2078]
[1743773688129,1.12582,1776.8,1776.7,3.2078]
[1743773688335,1.12582,1776.8,1776.7,40.8]
[1743773688531,0.00846024,1776.9,1776.6,0.00846024]
[1743773688831,0.00846024,1776.9,1776.7,3.2078]
[1743773689038,1.13425024,1776.9,1776.7,4.33365]
[1743773689337,0.00846024,1776.9,1776.7,3.2078]
[1743773689533,0.00846024,1776.9,1776.8,1.12582]
[1743773689726,0.00846024,1776.9,1776.6,0.00846024]
[1743773689727,1.12582,1776.8,1776.6,0.00846024]
[1743773689931,0.05184085,1776.6,1776.5,4.33375]
[1743773690130,0.05184085,1776.6,1776.5,3.2078]
[1743773690330,0.05184085,1776.6,1776.4,47.24802]
[1743773690331,0.05184085,1776.5,1776.4,5.307]
[1743773690532,0.05184085,1776.5,1776.1,6.6785]
[1743773690733,6.07471085,1776.5,1775.8,3.2078]
[1743773691038,6.07471085,1776.5,1775.3,8.78281]
[1743773691039,0.05184085,1775.8,1775.7,4.33431]
[1743773691235,0.05184085,1775.8,1775.5,5.309]
[1743773691434,1.12647,1775.8,1775.6,1.13500024]
[1743773691637,0.00846024,1775.8,1775.7,1.12651]
[1743773691834,0.00846024,1775.8,1775.6,0.00846024]
[1743773691835,1.13492024,1775.8,1775.6,0.00846024]
[1743773692033,1.12651,1775.7,1775.6,0.00846024]
[1743773692233,0.00846024,1775.8,1775.6,0.00846024]
[1743773692540,0.00846024,1775.8,1775.7,40.8]
[1743773692735,0.00846024,1775.8,1775.7,41.92651]
[1743773693044,0.00846024,1775.8,1775.7,44.42651]
[1743773693535,1.4924,1776.8,1776.3,3.2078]
[1743773693732,1.12536,1777.6,1776.8,2.81455]
[1743773693936,1.4344,1778.1,1777.9,1.12511]
[1743773694133,1.4349,1778.5,1778.0,6.43301]
[1743773694347,3.2078,1778.1,1777.5,3.2078]
[1743773694540,1.4344,1778.0,1777.5,5.966]
[1743773695041,1.12515,1777.9,1777.6,0.00843526]
[1743773695231,1.12525,1777.7,1777.6,0.00843526]
[1743773695437,3.21623526,1778.4,1777.6,0.00843526]
[1743773695638,1.4344,1778.1,1778.0,1.12506]
[1743773695835,1.4344,1778.3,1778.0,3.2078]
[1743773696038,1.12493,1778.2,1778.0,4.33282]
[1743773696233,1.4344,1778.3,1777.6,3.21623526]
[1743773696434,1.4344,1778.1,1777.6,0.00843526]
[1743773696634,1.12521,1777.8,1777.6,0.00843526]
[1743773696834,1.4344,1778.1,1777.6,0.00843526]
[1743773697035,1.12516,1777.9,1777.6,0.00843526]
[1743773697230,1.12525,1777.7,1777.6,0.00843526]
[1743773697435,1.4703,1777.8,1777.6,0.00843526]
[1743773697845,3.2078,1778.3,1777.6,0.00843526]
[1743773698044,3.2078,1778.3,1777.6,3.21623526]
[1743773698045,1.4703,1778.2,1777.6,3.21623526]
[1743773698347,1.4703,1778.2,1778.1,1.12499]
[1743773698637,0.00843526,1778.4,1778.1,40.8]
[1743773698837,0.5624,1779.0,1778.2,3.2078]
[1743773699043,3.7702,1779.1,1778.5,1.12472]
[1743773699240,1.12465,1778.7,1778.4,6.46575]
[1743773699445,3.2078,1778.9,1778.5,1.12473]
[1743773699746,1.5454,1778.8,1778.4,5.341]
[1743773699946,2.66995,1778.8,1778.4,5.341]
[1743773700241,0.00533433,1778.9,1778.8,1.12455]
[1743773700539,4.7532,1779.3,1778.8,8.5328]
[1743773700732,1.5454,1779.3,1778.8,11.34417]
[1743773700932,0.5624,1779.8,1779.0,3.2078]
[1743773701143,1.5454,1779.9,1779.8,1.12392]
[1743773701343,1.5454,1779.9,1779.6,5.325]
[1743773701534,1.5454,1779.9,1779.6,6.44904]
[1743773701858,4.7532,1779.9,1779.6,5.33343526]
[1743773702149,4.33178,1779.7,1779.6,0.00843526]
[1743773702339,4.7532,1779.9,1779.6,0.00843526]
[1743773702538,1.5454,1779.9,1779.6,0.00843526]
[1743773702745,4.7532,1779.9,1779.6,0.00843526]
[1743773702942,4.33178,1779.7,1779.6,0.00843526]
[1743773703247,3.2078,1779.8,1779.6,0.00843526]
[1743773703441,2.61528,1779.7,1779.6,0.00843526]
[1743773703643,1.4913,1779.7,1779.6,0.00843526]
[1743773703836,3.2078,1780.3,1779.8,1.12388]
[1743773704142,3.2078,1780.1,1779.9,40.8]
[1743773704336,2.61509,1780.0,1779.9,40.8]
[1743773704541,1.12394,1779.8,1779.6,0.00843526]
[1743773704735,0.01126365,1779.6,1779.5,1.12411]
[1743773704939,0.01126365,1779.6,1779.5,1.4305]
[1743773705142,0.01126365,1779.5,1779.1,5.326]
[1743773705343,3.2078,1779.3,1778.4,5.966]
[1743773705655,3.2078,1779.0,1778.4,1.4305]
[1743773705849,1.12463,1778.7,1778.4,1.41923635]
[1743773706046,4.33235,1778.8,1778.7,0.00843526]
[1743773706546,3.2078,1778.8,1778.0,3.2078]
[1743773706743,3.2078,1778.6,1778.0,5.966]
[1743773706937,1.12478,1778.5,1778.0,5.966]
[1743773707138,3.2078,1778.4,1777.9,40.77]
[1743773707340,3.2078,1778.0,1777.3,5.334]
[1743773707550,4.33302,1777.8,1777.4,1.1254]
[1743773707750,0.06030109,1777.4,1777.3,6.4595]
[1743773708352,1.12532,1777.6,1777.3,8.89919891]
[1743773708539,1.12532,1777.6,1777.4,40.8]
[1743773708540,3.2078,1777.6,1777.4,40.8]
[1743773708744,0.00843526,1777.8,1777.4,40.8]
[1743773708944,5.26e-06,1777.8,1777.7,1.12525]
[1743773709139,3.2078,1778.3,1777.8,0.06029583]
[1743773709353,3.2078,1778.1,1777.8,1.18543583]
[1743773709645,3.2078,1778.3,1777.8,1.12515]
[1743773709845,3.2078,1778.1,1777.8,1.12516]
[1743773710050,3.2078,1778.1,1777.5,6.7603]
[1743773710347,3.2078,1777.7,1777.4,40.8]
[1743773710547,1.12537,1777.5,1777.2,1.13395526]
[1743773710753,3.2078,1777.7,1777.3,1.12548]
[1743773710954,3.2078,1777.7,1777.2,0.00843526]
[1743773711260,4.3333,1777.3,1777.2,0.00843526]
[1743773711442,4.3333,1777.3,1777.2,40.80843526]
[1743773711850,3.2078,1777.3,1777.2,40.80843526]
[1743773712353,4.3333,1777.3,1777.2,40.80843526]
[1743773712744,2.45984,1777.8,1777.5,1.12537]
[1743773712945,2.45984,1777.8,1777.5,1.12533]
[1743773712946,1.12521,1777.8,1777.5,1.12533]
[1743773713251,1.12521,1777.8,1777.2,40.80843526]
[1743773713252,3.771,1777.7,1777.2,40.80843526]
[1743773713446,3.2078,1777.3,1777.0,3.2078]
[1743773713648,0.5632,1777.9,1777.1,2.81407]
[1743773713948,4.4831,1778.0,1777.1,16.0189]
[1743773714145,3.2078,1777.8,1777.1,16.0189]
[1743773714346,3.9199,1778.0,1777.2,44.0078]
[1743773714651,0.00843526,1778.1,1777.9,1.1251]
[1743773714949,1.12493,1778.2,1778.1,0.05186583]
[1743773715157,3.2078,1778.2,1778.1,0.05186583]
[1743773715342,3.771,1778.4,1777.7,3.2078]
[1743773715547,3.2078,1778.4,1777.8,6.8444]
[1743773715760,3.771,1778.6,1778.1,40.8]
[1743773715954,0.00843526,1778.3,1778.2,1.12493]
[1743773716341,2.50843526,1778.3,1777.3,5.97443526]
[1743773716549,3.2078,1777.6,1777.3,0.00843526]
[1743773716751,8.6058,1777.6,1777.3,1.13390526]
[1743773717051,8.6058,1777.6,1777.3,0.00843526]
[1743773717254,3.2078,1777.4,1777.3,1.13388526]
[1743773717445,8.6058,1777.6,1777.3,0.00843526]
[1743773717645,1.12527,1777.7,1777.4,1.12544]
[1743773717949,3.2078,1777.6,1777.3,0.00843526]
[1743773718256,1.12521,1777.8,1777.6,1.12529]
[1743773718658,1.12544,1777.4,1777.3,0.00843526]
[1743773718958,0.05186583,1777.3,1777.2,1.12556]
[1743773719159,0.05186583,1777.3,1777.2,45.13336]
[1743773719361,3.2078,1777.7,1777.2,2.5]
[1743773719653,1.12527,1777.7,1777.1,6.02187]
[1743773719850,3.2078,1778.1,1777.9,1.12512]
[1743773720050,3.2078,1778.1,1777.5,5.392]
[1743773720245,1.12531,1777.6,1777.5,1.4138]
[1743773720455,1.12528,1777.7,1777.5,43.27883891]
[1743773720753,1.1252,1777.8,1777.5,42.15349891]
[1743773720955,1.12512,1777.9,1777.8,0.06030109]
[1743773721347,3.2078,1778.0,1777.5,42.15349891]
[1743773721651,6.53106,1778.0,1777.9,1.09e-06]
[1743773721860,12.23886,1778.0,1777.9,1.09e-06]
[1743773722058,1.12531,1777.6,1777.5,40.8]
[1743773722254,3.2078,1777.8,1777.2,0.00843526]
[1743773722460,3.2078,1777.6,1777.2,0.00843526]
[1743773722651,1.12539,1777.5,1777.2,1.13397526]
[1743773722850,4.33327,1777.4,1777.2,1.13399526]
[1743773723050,1.1255,1777.3,1777.2,0.00843526]
[1743773723357,1.12545,1777.4,1777.2,40.80843526]
[1743773723556,5.7078,1777.4,1776.3,0.7297]
[1743773723851,6.02288,1776.5,1775.9,1.12637]
[1743773724159,1.12619,1776.3,1776.0,1.1263]
[1743773724366,3.2078,1776.2,1776.0,0.11261261]
[1743773724546,3.2078,1776.4,1776.0,0.11261261]
[1743773724751,3.2078,1776.4,1776.2,1.12615]
[1743773724951,1.1262,1776.2,1776.0,0.11261261]
[1743773725165,3.2078,1776.2,1776.0,1.23893261]
[1743773725450,3.2078,1776.2,1776.0,0.11261261]
[1743773725658,1.12626,1776.1,1776.0,0.11261261]
[1743773725852,1.12657,1775.7,1775.3,1.12672]
[1743773726054,3.2078,1775.8,1775.3,1.4922]
[1743773726459,4.33428,1775.8,1775.5,1.12663]
[1743773726655,4.33428,1775.8,1775.2,13.55020836]
[1743773726656,3.771,1776.0,1775.7,1.12651]
[1743773726860,3.2078,1776.0,1775.4,8.5988]
[1743773727165,3.771,1776.2,1775.9,1.12639]
[1743773727349,4.33404,1776.2,1775.9,1.12632]
[1743773727554,3.2078,1776.2,1775.8,1.4765]
[1743773727755,1.12639,1775.9,1775.8,1.4765]
[1743773728047,1.12645,1775.8,1775.7,0.00843526]
[1743773728250,4.33425,1775.8,1775.7,0.00843526]
[1743773728455,4.33425,1775.8,1775.7,40.80843526]
[1743773729262,3.2078,1775.8,1775.7,40.80843526]
[1743773729466,1.12643,1775.9,1775.7,40.80843526]
[1743773729756,3.2078,1776.2,1775.7,40.80843526]
[1743773729954,1.12635,1776.0,1775.7,41.93489526]
[1743773730150,3.2078,1776.2,1775.7,40.80843526]
[1743773730353,3.2078,1776.2,1775.8,1.5097]
[1743773730554,3.2078,1776.2,1775.8,4.7175]
[1743773730757,3.2078,1776.2,1775.8,1.5097]
[1743773730958,3.2078,1776.0,1775.8,1.5097]
[1743773731363,3.2078,1776.0,1775.7,40.80843526]
[1743773731554,2.82382526,1776.3,1775.1,3.2078]
[1743773731555,3.2078,1775.8,1775.1,3.2078]
[1743773731761,1.1266,1775.6,1775.3,1.12675]
[1743773731958,3.2078,1776.0,1775.3,3.2078]
[1743773732161,3.2078,1776.0,1775.4,42.3097]
[1743773732360,3.2078,1776.0,1775.4,47.7017]
[1743773732555,3.2078,1776.0,1775.9,1.12639]
[1743773732763,3.2078,1776.2,1775.8,5.392]
[1743773733065,1.12647,1775.8,1775.6,8.02525]
[1743773733359,4.33404,1776.2,1776.0,1.1263]
[1743773733560,0.00843526,1776.3,1776.0,8.5968]
[1743773733759,3.2078,1776.7,1776.1,1.4887]
[1743773734365,4.493,1777.2,1776.3,3.2078]
[1743773734564,1.12579,1776.9,1776.4,10.0945]
[1743773734868,0.00843526,1776.8,1776.5,0.00843526]
[1743773735455,1.12589,1776.7,1776.5,1.13441526]
[1743773735667,0.00843526,1776.8,1776.7,1.12588]
[1743773735868,0.5632,1777.3,1776.8,0.05186583]
[1743773736061,3.2078,1777.6,1777.4,1.12541]
[1743773736255,1.12531,1777.6,1777.5,40.8]
[1743773736456,1.12569,1777.0,1776.9,7.29764726]
[1743773736663,1.1258,1776.9,1776.6,5.394]
[1743773736860,1.1258,1776.9,1776.4,3.2078]
[1743773736861,3.2078,1776.9,1776.3,3.58208]
[1743773737056,3.2078,1776.9,1776.6,0.00843526]
[1743773737057,1.12588,1776.7,1776.6,0.00843526]
[1743773737260,4.33368,1776.7,1776.6,0.00843526]
[1743773737967,6.83368,1776.7,1776.6,0.00843526]
[1743773738160,7.39688,1776.7,1776.6,5.26e-06]
[1743773739163,13.22488,1776.7,1776.6,5.26e-06]
[1743773739568,13.22488,1776.7,1775.6,1.4346]
[1743773739871,3.2078,1775.9,1775.3,6.0932]
[1743773740063,3.2078,1775.5,1775.4,40.8]
[1743773740262,8.64388,1776.0,1775.4,40.8]
[1743773740263,3.2078,1775.7,1775.4,40.8]
[1743773740462,4.33444,1775.5,1775.4,40.8]
[1743773741065,1.1267,1775.4,1775.3,0.00843526]
[1743773741265,2.6312,1775.4,1775.3,0.00843526]
[1743773741470,5.1312,1775.4,1775.3,0.00843526]
[1743773742067,1.12715,1774.7,1774.6,40.8]
[1743773742369,1.12715,1774.7,1773.2,10.13097657]
[1743773742370,2.81836,1774.4,1773.5,5.966]
[1743773742571,3.2078,1774.0,1773.9,1.12766]
[1743773742871,5.828,1774.6,1773.9,40.91274592]
[1743773743069,3.2078,1775.0,1774.2,2.81867]
[1743773743276,0.00843526,1774.4,1774.3,2.6363]
[1743773743668,4.33494,1774.8,1774.3,4.0089]
[1743773743968,1.3973,1774.9,1774.4,1.5089]
[1743773744169,3.2078,1774.8,1774.4,2.63619]
[1743773744468,1.1273,1774.5,1774.2,1.12743]
[1743773744764,1.40573526,1774.7,1774.2,1.5089]
[1743773744970,0.00843526,1774.7,1774.6,1.12721]
[1743773745165,0.00843526,1774.7,1774.6,3.62721]
[1743773745369,3.2078,1775.4,1775.3,1.12677]
[1743773745571,3.2078,1775.4,1775.0,5.396]
[1743773745762,3.2078,1775.4,1775.3,1.12677]
[1743773745965,1.46,1775.6,1775.1,4.6647]
[1743773746169,1.46,1775.6,1775.2,1.4569]
[1743773746567,1.46843526,1775.6,1775.5,1.12664]
[1743773746761,1.46843526,1775.6,1775.2,2.59212526]
[1743773746972,2.59505526,1775.6,1775.3,1.12676]
[1743773747171,1.46843526,1775.6,1775.2,1.46533526]
[1743773747373,3.2078,1775.8,1775.7,1.12651]
[1743773747566,3.2078,1775.8,1775.6,1.12654]
[1743773747867,3.2078,1775.8,1775.5,5.397]
[1743773748076,1.6894,1776.2,1775.6,1.4569]
[1743773748371,4.6678,1776.3,1775.6,4.6647]
[1743773748568,4.62413526,1776.1,1775.7,40.8]
[1743773748972,1.12645,1775.8,1775.7,40.8]
[1743773749275,1.12677,1775.3,1775.2,0.00843526]
[1743773749667,3.2078,1775.6,1775.2,0.00843526]
[1743773749970,1.4079,1775.5,1775.2,0.00843526]
[1743773750276,1.12677,1775.3,1775.2,0.00843526]
[1743773750471,1.4079,1775.5,1775.2,0.00843526]
[1743773750472,3.2078,1775.8,1775.2,5.40243526]
[1743773750665,3.2078,1775.8,1775.6,1.12654]
[1743773750866,1.4079,1776.0,1775.3,3.2078]
[1743773751069,0.00843526,1776.1,1775.5,3.2078]
[1743773751278,1.12632,1776.0,1775.8,1.12642]
[1743773751575,1.49903526,1776.1,1775.9,1.12634]
[1743773751777,3.2078,1776.0,1775.7,1.44]
[1743773751979,3.2078,1776.0,1775.5,5.381]
[1743773752177,2.61702,1775.9,1775.7,1.12648]
[1743773752372,1.12654,1775.7,1775.5,1.12661]
[1743773752577,1.12664,1775.5,1775.4,1.44]
[1743773752874,1.12677,1775.3,1775.2,0.00843526]
[1743773753073,5.64001526,1776.1,1775.3,1.12677]
[1743773753074,4.6984,1775.4,1775.3,1.12677]
[1743773753276,1.4906,1775.4,1775.2,0.00843526]
[1743773753577,3.2078,1776.0,1775.6,1.12656]
[1743773753775,1.4906,1775.8,1775.7,1.12651]
[1743773754278,1.4906,1775.8,1775.4,4.6478]
[1743773754469,3.2078,1775.8,1775.7,1.12651]
[1743773754675,3.2078,1775.8,1775.4,1.44]
[1743773754976,4.682,1776.0,1775.8,1.12643]
[1743773755177,1.4742,1776.0,1775.9,1.12639]
[1743773755368,4.682,1776.0,1775.4,7.406]
[1743773755575,4.33434,1775.7,1775.5,1.12661]
[1743773755776,1.12659,1775.6,1775.4,1.44]
[1743773755975,3.2078,1775.7,1775.4,1.44]
[1743773756278,1.12647,1775.8,1775.4,6.788]
[1743773756481,1.12649,1775.8,1775.6,1.12653]
[1743773756668,1.12649,1775.8,1775.7,1.12651]
[1743773756874,1.12649,1775.8,1775.6,1.12653]
[1743773757073,3.2078,1775.8,1775.7,1.12651]
[1743773757377,1.4742,1776.0,1775.9,1.12639]
[1743773757681,0.00843526,1776.1,1775.6,3.2078]
[1743773757972,0.00843526,1776.1,1775.4,2.81677]
[1743773757973,3.2078,1776.0,1775.4,2.81677]
[1743773758177,4.62333526,1776.1,1775.5,1.3998]
[1743773758374,1.41553526,1776.1,1775.8,1.12641]
[1743773758575,1.41553526,1776.1,1775.7,3.2078]
[1743773758871,1.12653,1775.7,1775.6,1.12655]
[1743773759077,1.12654,1775.7,1775.6,1.12657]
[1743773759373,3.2078,1775.9,1775.5,2.52641]
[1743773759567,4.6149,1775.8,1775.2,3.21623526]
[1743773759773,1.13472526,1776.1,1775.6,3.2078]
[1743773760077,0.00843526,1776.1,1776.0,1.12632]
[1743773760270,5.26e-06,1776.1,1776.0,6.46832]
[1743773760470,5.26e-06,1776.1,1776.0,5.342]
[1743773760780,1.12626526,1776.1,1776.0,1.4348]
[1743773760976,1.12626526,1776.1,1776.0,41.92632]
[1743773761179,4.33410526,1776.1,1776.0,1.12632]
[1743773761375,2.81585,1776.0,1775.6,1.4348]
[1743773761679,1.12664,1775.5,1775.1,8.78311]
[1743773761883,4.33441,1775.6,1775.5,1.12664]
[1743773762074,1.1267,1775.4,1775.3,40.8]
[1743773762275,3.2078,1775.6,1775.4,1.1267]
[1743773762276,1.4412,1775.5,1775.4,1.1267]
[1743773762477,2.56784,1775.5,1775.4,1.1267]
[1743773762668,1.12647,1775.8,1775.3,43.61689]
[1743773762981,2.56765,1775.9,1775.7,1.12646]
[1743773763181,1.4412,1775.9,1775.4,1.4348]
[1743773763380,1.4412,1775.9,1775.7,1.1265]
[1743773763381,1.12646,1775.8,1775.7,1.1265]
[1743773763679,2.81629,1775.7,1775.3,40.8]
[1743773763876,4.3345,1775.4,1775.3,40.8]
[1743773764081,1.12677,1775.3,1775.2,0.00843526]
[1743773764276,1.12726,1774.6,1774.2,0.7174]
[1743773764479,1.12734,1774.4,1774.1,1.1275]
[1743773764679,3.2078,1774.5,1774.0,1.61663957]
[1743773764880,1.399,1774.4,1774.0,1.5039]
[1743773765193,8.5608,1774.9,1774.2,40.8]
[1743773765489,1.13561526,1774.7,1774.4,0.00843526]
[1743773765785,1.12727,1774.6,1774.4,0.00843526]
[1743773766086,1.12725,1774.6,1774.4,1.13576526]
[1743773766282,1.12728,1774.5,1774.4,0.00843526]
[1743773766482,2.52623,1774.6,1774.4,0.00843526]
[1743773766680,1.399,1774.6,1774.4,0.00843526]
[1743773766886,1.12728,1774.5,1774.4,0.00843526]
[1743773767486,1.4485,1774.6,1774.4,0.00843526]
[1743773767693,2.57574,1774.6,1774.4,1.13575526]
[1743773767885,1.13563526,1774.7,1774.5,1.5037]
[1743773768080,1.12721,1774.6,1774.5,1.5037]
[1743773768379,0.00843526,1774.7,1774.5,1.5037]
[1743773768587,0.00843526,1774.7,1774.6,4.33501]
[1743773768783,3.2078,1775.2,1774.9,1.12701]
[1743773769183,1.12689,1775.1,1775.0,40.8]
[1743773769585,3.2078,1775.4,1775.0,40.8]
[1743773769885,4.33469,1775.1,1775.0,40.8]
[1743773770192,1.12689,1775.1,1775.0,40.8]
[1743773770384,3.2078,1775.3,1775.0,40.8]
[1743773770690,4.33469,1775.1,1775.0,40.8]
[1743773770887,4.33469,1775.1,1774.5,1.3995]
[1743773770888,1.12721,1774.6,1774.5,1.3995]
[1743773771087,1.12727,1774.6,1774.3,2.52688]
[1743773771284,3.2078,1774.7,1774.3,1.3995]
[1743773771486,1.12721,1774.6,1774.5,40.8]
[1743773771689,3.2078,1774.7,1774.5,40.8]
[1743773771985,3.2078,1775.0,1774.6,1.12716]
[1743773772187,1.12715,1774.7,1774.6,1.3995]
[1743773772384,3.2078,1775.0,1774.9,1.12702]
[1743773772580,1.12704,1774.9,1774.7,1.12711]
[1743773772780,3.2078,1774.8,1774.6,1.3995]
[1743773772986,1.12715,1774.7,1774.6,1.3995]
[1743773773194,1.12696,1775.0,1774.8,1.12705]
[1743773773385,3.2078,1775.2,1774.6,50.36946]
[1743773773692,3.2078,1775.2,1774.7,1.4959]
[1743773773889,1.12693,1775.1,1774.9,1.12699]
[1743773774090,1.12699,1775.0,1774.8,1.12706]
[1743773774291,3.2078,1774.9,1774.7,1.4959]
[1743773774589,3.2078,1774.9,1774.8,1.12709]
[1743773774793,0.00843526,1775.4,1774.7,1.4959]
[1743773774987,0.00843526,1775.4,1774.8,2.81772]
[1743773775188,0.00843526,1775.4,1774.9,7.52122]
[1743773775397,0.00843526,1775.4,1775.3,1.12677]
[1743773775693,5.26e-06,1775.4,1775.3,4.33457]
[1743773775890,5.26e-06,1775.4,1775.3,6.83457]
[1743773776789,5.26e-06,1775.4,1775.3,12.80057]
[1743773777495,1.4308,1776.5,1775.3,26.03329926]
[1743773777693,2.10658091,1776.5,1776.1,1.12623]
[1743773777894,3.2078,1776.4,1776.3,1.12613]
[1743773778192,0.11258091,1776.5,1775.8,14.13598]
[1743773778396,1.12625,1776.2,1776.1,1.12626]
[1743773778593,4.33405,1776.2,1776.1,40.8]
[1743773778796,2.81567,1776.1,1775.0,2.81726]
[1743773778998,3.2078,1775.6,1775.0,4.33268]
[1743773779202,1.12682,1775.3,1775.0,1.5153]
[1743773779497,1.12684,1775.2,1775.0,1.5153]
[1743773779693,1.12696,1775.0,1774.9,1.127]
[1743773779891,3.2078,1775.2,1774.9,1.127]
[1743773779892,1.12692,1775.1,1774.9,0.00843526]